lending/lending_fUSD_20260411
["ID","MTS","AMOUNT","RATE_DAILY","PERIOD"]
[420271918,1775896499135,500.0,8.018e-05,2]
[420271919,1775896511191,157.0,8.018e-05,3]
[420271920,1775896513974,1060.0,8.018e-05,3]
[420271921,1775896521458,167.0,8.018e-05,3]
[420271922,1775896533370,293.7966764,8.638e-05,30]
[420271923,1775896534974,293.7966764,8.7e-05,30]
[420271924,1775896535310,293.7966764,8.724e-05,30]
[420271925,1775896535509,293.7966764,8.726e-05,30]
[420271926,1775896539982,-195.35678706,8.638e-05,2]
[420271927,1775896567507,1007.0,8.018e-05,3]
[420271928,1775896575913,8993.01,8.593e-05,2]
[420271929,1775896575947,1455.126426,8.593e-05,2]
[420271930,1775896581025,154.0,8.018e-05,3]
[420271932,1775896591044,659.95,7.959e-05,2]
[420271933,1775896627131,956.0,8.018e-05,3]
[420271935,1775896686423,908.0,8.018e-05,3]
[420271936,1775896700442,866.933574,8.219e-05,2]
[420271937,1775896700499,3751.766426,8.219e-05,2]
[420271940,1775896725027,1116.0,8.576e-05,2]
[420271941,1775896730186,132.243574,8.562e-05,2]
[420271942,1775896730214,983.756426,8.562e-05,2]
[420271943,1775896734002,1116.0,8.562e-05,2]
[420271944,1775896739948,1116.0,8.562e-05,2]
[420271945,1775896743869,1116.0,8.562e-05,2]
[420271946,1775896748531,863.0,8.018e-05,3]
[420271947,1775896750998,523.55258513,8.51e-05,2]
[420271949,1775896786069,678.786325,8.636e-05,2]
[420271950,1775896793689,163.99,8.219e-05,2]
[420271951,1775896800773,150.0,0.000162,120]
[420271952,1775896800894,248.31,0.000161,120]
[420271953,1775896801234,248.31,0.00016,120]
[420271954,1775896801459,150.0,0.000151,120]
[420271955,1775896801591,196.64,0.00016,120]
[420271956,1775896806602,157.0,8.018e-05,3]
[420271957,1775896808486,820.0,8.018e-05,3]
[420271959,1775896809110,200.0,0.00013,60]
[420271960,1775896813729,3180.233675,7.99e-05,2]
[420271961,1775896813761,5000.01,7.99e-05,2]
[420271962,1775896813791,5000.01,7.99e-05,2]
[420271963,1775896813818,5000.01,7.99e-05,2]
[420271964,1775896813847,24039.456325,7.99e-05,2]
[420271965,1775896833852,150.0,8.68e-05,30]
[420271966,1775896892762,952.8377,8.627e-05,2]
[420271967,1775896902368,154.0,8.018e-05,3]
[420271969,1775896926970,200.0,0.00013,60]
[420271970,1775896927706,779.0,8.018e-05,3]
[420271972,1775896992090,740.0,8.018e-05,3]
[420271973,1775897046294,200.0,0.00013,60]
[420271974,1775897049146,703.0,8.018e-05,3]
[420271975,1775897064429,153.0,5.468e-05,2]
[420271976,1775897064615,152.0,5.468e-05,2]
[420271977,1775897064999,152.0,5.468e-05,2]
[420271978,1775897111431,157.0,8.018e-05,3]
[420271979,1775897111507,668.0,8.018e-05,3]
[420271980,1775897156597,-163.99,8.676e-05,2]
[420271981,1775897156626,-212.55498381,8.676e-05,30]
[420271982,1775897156658,-488.24324153,8.676e-05,30]
[420271983,1775897167050,634.0,8.018e-05,3]
[420271984,1775897167101,200.0,0.00013,60]
[420271985,1775897171472,-274.0,8.676e-05,2]
[420271986,1775897186616,-564.3468,8.68e-05,2]
[420271987,1775897186685,-27.17221504,8.68e-05,30]
[420271988,1775897186752,-212.55498381,8.68e-05,30]
[420271989,1775897186840,-488.24324153,8.68e-05,30]
[420271990,1775897187224,1038.3778,8.627e-05,2]
[420271991,1775897195339,152.0,8.228e-05,2]
[420271992,1775897195527,1500.0,7.963e-05,2]
[420271993,1775897195885,152.0,8.228e-05,2]
[420271994,1775897196494,152.0,8.23e-05,2]
[420271995,1775897197171,152.0,8.23e-05,2]
[420271996,1775897197758,152.0,8.23e-05,2]
[420271997,1775897198406,152.0,8.23e-05,2]
[420271998,1775897199266,152.0,8.233e-05,2]
[420271999,1775897200158,152.0,8.233e-05,2]
[420272000,1775897202081,-291.45,8.7e-05,2]
[420272001,1775897202113,-212.55498381,8.7e-05,30]
[420272002,1775897202142,-488.24324153,8.7e-05,30]
[420272003,1775897216920,-151.0,8.724e-05,2]
[420272004,1775897216952,-151.0,8.724e-05,2]
[420272005,1775897216998,-186.79007025,8.724e-05,2]
[420272006,1775897217032,-265.75832255,8.724e-05,30]
[420272007,1775897217069,-212.55498381,8.724e-05,30]
[420272008,1775897217107,-488.24324153,8.724e-05,30]
[420272009,1775897221177,300.0,8.723e-05,2]
[420272010,1775897227322,603.0,8.018e-05,3]
[420272011,1775897230698,154.0,8.018e-05,3]
[420272012,1775897232016,-150.99,8.724e-05,2]
[420272013,1775897232054,-300.0,8.724e-05,2]
[420272014,1775897232097,-1200.0,8.724e-05,2]
[420272015,1775897232141,-300.0,8.724e-05,2]
[420272016,1775897232188,-150.0,8.724e-05,2]
[420272017,1775897249181,-967.04,8.725e-05,2]
[420272018,1775897249222,-3238.989,8.725e-05,2]
[420272019,1775897249350,-1587.952,8.725e-05,2]
[420272020,1775897249387,-255.311,8.725e-05,2]
[420272021,1775897249508,-0.02,8.725e-05,2]
[420272022,1775897249657,-0.04,8.725e-05,2]
[420272023,1775897249785,-0.08,8.725e-05,2]
[420272024,1775897249884,-0.16,8.725e-05,2]
[420272025,1775897250014,-0.32,8.725e-05,2]
[420272026,1775897250141,-0.64,8.725e-05,2]
[420272027,1775897250248,-1.28,8.725e-05,2]
[420272028,1775897250491,-2.56,8.725e-05,2]
[420272029,1775897251564,-9334.55450894,8.725e-05,2]
[420272030,1775897251685,-660.33549106,8.725e-05,2]
[420272031,1775897251701,-150.99,8.725e-05,2]
[420272032,1775897256251,5000.01,8.627e-05,2]
[420272033,1775897256298,5000.01,8.627e-05,2]
[420272034,1775897256346,5000.01,8.627e-05,2]
[420272035,1775897258486,-10000.01,8.627e-05,2]
[420272036,1775897258542,-10000.01,8.627e-05,2]
[420272037,1775897258564,-10000.01,8.627e-05,2]
[420272038,1775897258599,-10000.01,8.627e-05,2]
[420272039,1775897260223,-10000.01,8.627e-05,2]
[420272040,1775897260237,-10000.01,8.627e-05,2]
[420272041,1775897260271,-10000.01,8.627e-05,2]
[420272042,1775897260289,-10000.01,8.627e-05,2]
[420272043,1775897260369,-10000.01,8.627e-05,2]
[420272044,1775897260389,-10000.01,8.627e-05,2]
[420272045,1775897261242,-10000.01,8.627e-05,2]
[420272046,1775897261314,-10000.01,8.627e-05,2]
[420272047,1775897261332,-10000.01,8.627e-05,2]
[420272048,1775897261358,-10000.01,8.627e-05,2]
[420272049,1775897261396,-10000.01,8.627e-05,2]
[420272050,1775897261409,-10000.01,8.627e-05,2]
[420272051,1775897286946,200.0,0.00013,60]
[420272052,1775897299818,845.18,8.454e-05,2]
[420272053,1775897341305,1600.0,8.455e-05,2]
[420272055,1775897405638,157.0,8.454e-05,3]
[420272056,1775897405690,740.0,8.454e-05,3]
[420272057,1775897406357,200.0,0.00013,60]
[420272068,1775897431869,-151.0,8.624e-05,2]
[420272069,1775897431885,-273.0,8.624e-05,2]
[420272070,1775897431897,-300.0,8.626e-05,2]
[420272071,1775897431910,-150.0,8.626e-05,2]
[420272072,1775897431926,-1200.0,8.626e-05,2]
[420272073,1775897431945,-225774.92479063,8.627e-05,2]
[420272074,1775897431957,-21144.18220611,8.627e-05,2]
[420272097,1775897432636,-374.94758386,8.627e-05,2]
[420272099,1775897432660,-2168.09710004,8.627e-05,2]
[420272101,1775897432675,-1600.00113981,8.627e-05,2]
[420272103,1775897432686,-396.47588614,8.627e-05,2]
[420272105,1775897432706,-134459.2657513,8.627e-05,2]
[420272108,1775897432733,-3440.12665687,8.627e-05,2]
[420272119,1775897438084,-195.2972966,8.624e-05,30]
[420272120,1775897438094,-3469.7027034,8.627e-05,2]
[420272121,1775897438125,-580.23789574,8.627e-05,2]
[420272122,1775897438189,-1689.6740682,8.627e-05,2]
[420272136,1775897438831,-6289.73662505,8.627e-05,2]
[420272142,1775897440588,-303.57687642,8.627e-05,2]
[420272150,1775897443210,-2516.88096098,8.627e-05,2]
[420272156,1775897448714,-371737.45005545,8.627e-05,2]
[420272157,1775897448764,-2500.0,8.627e-05,2]
[420272158,1775897448778,-292.94594491,8.627e-05,30]
[420272159,1775897448815,-6973.65446272,8.627e-05,2]
[420272160,1775897448847,-500.60457813,8.703e-05,2]
[420272161,1775897448869,-500.63542008,8.703e-05,2]
[420272162,1775897448908,-500.0,8.703e-05,2]
[420272163,1775897448969,-311.88887855,8.703e-05,2]
[420272164,1775897448989,-634.22891187,8.703e-05,2]
[420272165,1775897449011,-500.0,8.703e-05,2]
[420272166,1775897449028,-500.0,8.703e-05,2]
[420272167,1775897449047,-503.63312798,8.703e-05,2]
[420272168,1775897449057,-500.0,8.703e-05,2]
[420272170,1775897449077,-500.0,8.703e-05,2]
[420272172,1775897449092,-500.0,8.703e-05,2]
[420272173,1775897449101,-500.0,8.703e-05,2]
[420272174,1775897449113,-196.01026906,8.725e-05,2]
[420272175,1775897449136,-442.31210876,8.726e-05,2]
[420272176,1775897449145,-500.0,8.726e-05,2]
[420272177,1775897449155,-500.0,8.726e-05,2]
[420272178,1775897449180,-500.0,8.726e-05,2]
[420272179,1775897449189,-225.10820864,8.726e-05,2]
[420272180,1775897449198,-500.0,8.726e-05,2]
[420272181,1775897449216,-500.0,8.726e-05,2]
[420272182,1775897449228,-500.0,8.726e-05,2]
[420272183,1775897449237,-500.0,8.726e-05,2]
[420272184,1775897449246,-500.0,8.726e-05,2]
[420272185,1775897449261,-500.0,8.726e-05,2]
[420272186,1775897449271,-214.98426217,8.726e-05,2]
[420272187,1775897449280,-500.0,8.726e-05,2]
[420272188,1775897449289,-500.0,8.726e-05,2]
[420272189,1775897449301,-500.0,8.726e-05,2]
[420272190,1775897449310,-500.0,8.726e-05,2]
[420272191,1775897449321,-500.0,8.726e-05,2]
[420272192,1775897449330,-500.0,8.726e-05,2]
[420272193,1775897449339,-500.0,8.726e-05,2]
[420272194,1775897449348,-500.0,8.726e-05,2]
[420272195,1775897449360,-500.0,8.726e-05,2]
[420272196,1775897449371,-500.0,8.726e-05,2]
[420272197,1775897449380,-500.0,8.726e-05,2]
[420272198,1775897449394,-500.0,8.726e-05,2]
[420272199,1775897449403,-500.0,8.726e-05,2]
[420272200,1775897449413,-500.0,8.726e-05,2]
[420272201,1775897449422,-500.0,8.726e-05,2]
[420272202,1775897449434,-500.0,8.726e-05,2]
[420272203,1775897449447,-500.0,8.726e-05,2]
[420272204,1775897449460,-500.0,8.726e-05,2]
[420272205,1775897449470,-500.0,8.726e-05,2]
[420272206,1775897449486,-500.0,8.726e-05,2]
[420272207,1775897449499,-500.0,8.726e-05,2]
[420272208,1775897449510,-500.0,8.726e-05,2]
[420272209,1775897449521,-500.0,8.726e-05,2]
[420272210,1775897449538,-500.0,8.726e-05,2]
[420272211,1775897449553,-500.0,8.726e-05,2]
[420272212,1775897449563,-500.0,8.726e-05,2]
[420272213,1775897449583,-500.0,8.726e-05,2]
[420272214,1775897449600,-204.72001675,8.726e-05,2]
[420272215,1775897449611,-500.0,8.726e-05,2]
[420272216,1775897449656,-450.0,8.726e-05,2]
[420272217,1775897449687,-500.0,8.726e-05,2]
[420272218,1775897449711,-500.0,8.726e-05,2]
[420272219,1775897449734,-500.0,8.726e-05,2]
[420272220,1775897449790,-500.0,8.726e-05,2]
[420272221,1775897449831,-500.0,8.726e-05,2]
[420272222,1775897449849,-500.0,8.726e-05,2]
[420272223,1775897449866,-500.0,8.726e-05,2]
[420272224,1775897449885,-500.0,8.726e-05,2]
[420272225,1775897449910,-500.0,8.726e-05,2]
[420272226,1775897449926,-500.0,8.726e-05,2]
[420272227,1775897449952,-500.0,8.726e-05,2]
[420272228,1775897449963,-500.0,8.726e-05,2]
[420272229,1775897449976,-500.0,8.726e-05,2]
[420272230,1775897449996,-500.0,8.726e-05,2]
[420272231,1775897450006,-500.0,8.726e-05,2]
[420272232,1775897450023,-500.0,8.726e-05,2]
[420272233,1775897450041,-500.0,8.726e-05,2]
[420272234,1775897450052,-500.0,8.726e-05,2]
[420272235,1775897450073,-500.0,8.726e-05,2]
[420272236,1775897450091,-323.34412143,8.726e-05,2]
[420272237,1775897450103,-500.0,8.726e-05,2]
[420272238,1775897450113,-500.0,8.726e-05,2]
[420272239,1775897450129,-500.0,8.726e-05,2]
[420272240,1775897450139,-500.0,8.726e-05,2]
[420272241,1775897450148,-500.0,8.726e-05,2]
[420272242,1775897450157,-500.0,8.726e-05,2]
[420272243,1775897450170,-150.0,8.726e-05,2]
[420272244,1775897450179,-500.0,8.726e-05,2]
[420272245,1775897450188,-513.70309482,8.726e-05,2]
[420272246,1775897450197,-500.0,8.726e-05,2]
[420272247,1775897450210,-500.0,8.726e-05,2]
[420272248,1775897450220,-500.0,8.726e-05,2]
[420272249,1775897450230,-500.0,8.726e-05,2]
[420272250,1775897450239,-500.0,8.726e-05,2]
[420272251,1775897450249,-500.0,8.726e-05,2]
[420272252,1775897450258,-500.0,8.726e-05,2]
[420272253,1775897450269,-500.0,8.726e-05,2]
[420272254,1775897450279,-500.0,8.726e-05,2]
[420272255,1775897450288,-500.0,8.726e-05,2]
[420272256,1775897450298,-500.0,8.726e-05,2]
[420272257,1775897450307,-500.0,8.726e-05,2]
[420272258,1775897450316,-500.0,8.726e-05,2]
[420272259,1775897450325,-500.0,8.726e-05,2]
[420272260,1775897450338,-500.0,8.726e-05,2]
[420272261,1775897450347,-300.0,8.726e-05,2]
[420272262,1775897450356,-500.0,8.726e-05,2]
[420272263,1775897450365,-500.0,8.726e-05,2]
[420272264,1775897450375,-1094.27129324,8.726e-05,3]
[420272265,1775897450384,-56366.54088729,8.727e-05,2]
[420272266,1775897450398,-2550.44113049,8.727e-05,2]
[420272274,1775897510086,1630.95,8.438e-05,2]
[420272275,1775897526846,200.0,0.00013,60]
[420272276,1775897528891,799.0,8.438e-05,3]
[420272277,1775897533985,166.0,8.438e-05,3]
[420272278,1775897541605,154.0,8.438e-05,3]
[420272279,1775897551791,-300.0,8.551e-05,2]
[420272280,1775897566038,-3861.553,8.552e-05,2]
[420272281,1775897566081,-204.249,8.552e-05,2]
[420272282,1775897566123,-272.0,8.552e-05,2]
[420272283,1775897587101,519.0,8.552e-05,3]
[420272284,1775897591249,-300.0,8.623e-05,2]
[420272285,1775897591296,-273.0,8.624e-05,2]
[420272286,1775897593307,167.0,8.552e-05,3]
[420272287,1775897597948,-500.0,8.624e-05,2]
[420272288,1775897597982,-609.09277529,8.624e-05,2]
[420272289,1775897598021,-450.34051986,8.624e-05,2]
[420272290,1775897598055,-428.03522177,8.624e-05,2]
[420272291,1775897598135,-500.0,8.624e-05,2]
[420272292,1775897598224,-195.05699266,8.624e-05,2]
[420272293,1775897598282,-500.0,8.624e-05,2]
[420272294,1775897598334,-500.0,8.624e-05,2]
[420272295,1775897598373,-500.0,8.624e-05,2]
[420272296,1775897598784,-500.0,8.624e-05,2]
[420272297,1775897598824,-246.12113861,8.624e-05,2]
[420272298,1775897599021,-500.0,8.624e-05,2]
[420272299,1775897599063,-500.0,8.624e-05,2]
[420272300,1775897599105,-500.0,8.624e-05,2]
[420272301,1775897599146,-500.0,8.624e-05,2]
[420272302,1775897599186,-500.0,8.624e-05,2]
[420272303,1775897599239,-500.0,8.624e-05,2]
[420272304,1775897599315,-500.0,8.624e-05,2]
[420272305,1775897599364,-417.88079137,8.624e-05,2]
[420272306,1775897599425,-500.0,8.624e-05,2]
[420272307,1775897599506,-500.0,8.624e-05,2]
[420272308,1775897599696,-500.0,8.624e-05,2]
[420272309,1775897599745,-500.0,8.624e-05,2]
[420272310,1775897599790,-500.0,8.624e-05,2]
[420272311,1775897599841,-500.0,8.624e-05,2]
[420272312,1775897599895,-500.0,8.624e-05,2]
[420272313,1775897599935,-500.0,8.624e-05,2]
[420272314,1775897599977,-500.0,8.624e-05,2]
[420272315,1775897600020,-500.0,8.624e-05,2]
[420272316,1775897600063,-500.0,8.624e-05,2]
[420272317,1775897600106,-500.0,8.624e-05,2]
[420272318,1775897600202,-500.0,8.624e-05,2]
[420272319,1775897600268,-500.0,8.624e-05,2]
[420272320,1775897600321,-500.0,8.624e-05,2]
[420272321,1775897600378,-500.0,8.624e-05,2]
[420272322,1775897600429,-500.0,8.624e-05,2]
[420272323,1775897600516,-474.61211386,8.624e-05,2]
[420272324,1775897600576,-500.0,8.624e-05,2]
[420272325,1775897600622,-500.0,8.624e-05,2]
[420272326,1775897605890,2050.78577228,8.624e-05,2]
[420272327,1775897605920,6288.61461519,8.624e-05,2]
[420272328,1775897609699,500.0,8.517e-05,2]
[420272329,1775897611945,-822.8900315,8.625e-05,2]
[420272330,1775897612003,-10000.01,8.625e-05,2]
[420272331,1775897612109,-10000.01,8.625e-05,2]
[420272332,1775897612234,-10000.01,8.625e-05,2]
[420272333,1775897612376,-10000.01,8.625e-05,2]
[420272334,1775897612509,-10000.01,8.625e-05,2]
[420272335,1775897646211,371.0,0.00013,60]
[420272337,1775897784098,-300.0,8.624e-05,2]
[420272338,1775897784126,-150.0,8.624e-05,2]
[420272339,1775897784163,-1200.0,8.624e-05,2]
[420272340,1775897784205,-273.0,8.624e-05,2]
[420272341,1775897784255,-157.54231015,8.624e-05,2]
[420272342,1775897784315,-89886.9623685,8.625e-05,2]
[420272343,1775897784358,-293.7966764,8.625e-05,30]
[420272344,1775897784410,-500.0,8.626e-05,2]
[420272345,1775897784447,-500.0,8.626e-05,2]
[420272346,1775897784484,-557.57574605,8.626e-05,2]
[420272347,1775897784516,-1951.8343,8.627e-05,2]
[420272348,1775897784545,-644229.2885989,8.627e-05,2]
[420272349,1775897808709,10000.01,8.525e-05,2]
[420272351,1775897812203,-272.0,8.525e-05,2]
[420272531,1775897894086,249.41,8.066e-05,2]
[420272532,1775897914402,13578.71252741,8e-05,2]
[420272533,1775897945184,5000.01,8.5e-05,2]
[420272534,1775897945219,4219.60226436,8.5e-05,2]
[420272535,1775897947361,830.0,8e-05,3]
[420272536,1775897976142,1000.0,8.377e-05,2]
[420272537,1775897976197,1000.0,8.418e-05,2]
[420272538,1775897980801,200.0,7.778e-05,2]
[420272539,1775898011806,789.0,7.778e-05,3]
[420272540,1775898014374,157.0,7.778e-05,3]
[420272542,1775898071101,750.0,7.778e-05,3]
[420272543,1775898078178,274.01,8.512e-05,2]
[420272545,1775898089754,3089.242,8.355e-05,2]
[420272546,1775898089805,163.399,8.355e-05,2]
[420272552,1775898120710,211.15,7.714e-05,2]
[420272553,1775898127479,712.0,7.778e-05,3]
[420272555,1775898136501,824.219,7.684e-05,2]
[420272556,1775898136537,5000.01,7.684e-05,2]
[420272557,1775898136579,5000.01,7.684e-05,2]
[420272558,1775898136629,5000.01,7.684e-05,2]
[420272559,1775898136667,22438.571,7.684e-05,2]
[420272560,1775898148419,-1428.27,8.512e-05,2]
[420272561,1775898162517,-151.0,8.522e-05,2]
[420272562,1775898162572,-500.0,8.522e-05,2]
[420272563,1775898162651,-464.64024967,8.522e-05,2]
[420272564,1775898179047,-1200.0,8.523e-05,2]
[420272565,1775898179091,-194.53500503,8.523e-05,30]
[420272566,1775898182303,300.0,8.523e-05,2]
[420272567,1775898183044,150.0,8.523e-05,2]
[420272568,1775898187887,676.0,7.778e-05,3]
[420272569,1775898190667,154.0,7.778e-05,3]
[420272570,1775898194017,-250.0,8.523e-05,2]
[420272571,1775898194108,-294.01467286,8.523e-05,2]
[420272572,1775898210051,-1200.0,8.524e-05,2]
[420272573,1775898210099,-300.0,8.524e-05,2]
[420272574,1775898227389,-500.0,8.524e-05,2]
[420272575,1775898230906,272.0,8.524e-05,2]
[420272576,1775898241182,300.0,8.523e-05,2]
[420272577,1775898246302,743.0,8.524e-05,3]
[420272578,1775898252214,-506.50023244,8.524e-05,2]
[420272579,1775898256531,-309.61847613,8.524e-05,2]
[420272580,1775898256572,-150.0,8.524e-05,2]
[420272581,1775898256621,-505.24811389,8.524e-05,2]
[420272582,1775898256663,-505.24811389,8.524e-05,2]
[420272583,1775898256702,-505.24811389,8.524e-05,2]
[420272584,1775898256739,-505.24811389,8.524e-05,2]
[420272585,1775898256879,-505.24811389,8.524e-05,2]
[420272586,1775898256915,-505.24811389,8.524e-05,2]
[420272587,1775898256954,-505.24811389,8.524e-05,2]
[420272588,1775898256991,-505.24811389,8.524e-05,2]
[420272589,1775898257036,-452.77697499,8.524e-05,2]
[420272590,1775898257225,-52.4711389,8.524e-05,2]
[420272591,1775898257297,-505.24811389,8.524e-05,2]
[420272592,1775898257372,-505.24811389,8.524e-05,2]
[420272593,1775898257464,-505.24811389,8.524e-05,2]
[420272594,1775898257562,-505.24811389,8.524e-05,2]
[420272595,1775898257672,-347.83469719,8.524e-05,2]
[420272596,1775898258141,-157.4134167,8.524e-05,2]
[420272597,1775898258174,-505.24811389,8.524e-05,2]
[420272598,1775898258209,-505.24811389,8.524e-05,2]
[420272599,1775898258243,-505.24811389,8.524e-05,2]
[420272600,1775898258278,-505.24811389,8.524e-05,2]
[420272601,1775898258319,-137.95014159,8.524e-05,2]
[420272602,1775898258450,-367.2979723,8.524e-05,2]
[420272603,1775898258499,-505.24811389,8.524e-05,2]
[420272604,1775898258545,-505.24811389,8.524e-05,2]
[420272605,1775898258597,-505.24811389,8.524e-05,2]
[420272606,1775898258651,-505.24811389,8.524e-05,2]
[420272607,1775898258943,-505.24811389,8.524e-05,2]
[420272608,1775898259040,-505.24811389,8.524e-05,2]
[420272609,1775898259106,-505.24811389,8.524e-05,2]
[420272610,1775898259164,-505.24811389,8.524e-05,2]
[420272611,1775898259215,-452.77697499,8.524e-05,2]
[420272612,1775898259330,-52.4711389,8.524e-05,2]
[420272613,1775898259366,-505.24811389,8.524e-05,2]
[420272614,1775898259404,-505.24811389,8.524e-05,2]
[420272615,1775898259438,-505.24811389,8.524e-05,2]
[420272616,1775898259472,-505.24811389,8.524e-05,2]
[420272617,1775898259505,-347.83469719,8.524e-05,2]
[420272618,1775898263033,-157.4134167,8.524e-05,2]
[420272619,1775898263071,-505.24811389,8.524e-05,2]
[420272620,1775898263110,-505.24811389,8.524e-05,2]
[420272621,1775898263148,-505.24811389,8.524e-05,2]
[420272622,1775898263187,-505.24811389,8.524e-05,2]
[420272623,1775898263224,-137.95014159,8.524e-05,2]
[420272625,1775898263360,-367.2979723,8.524e-05,2]
[420272626,1775898263404,-505.24811389,8.524e-05,2]
[420272627,1775898263444,-500.0,8.524e-05,2]
[420272628,1775898263486,-590.30302224,8.524e-05,2]
[420272629,1775898263530,-510.40370689,8.524e-05,2]
[420272630,1775898263653,-510.40370689,8.524e-05,2]
[420272631,1775898263697,-510.40370689,8.524e-05,2]
[420272632,1775898263742,-510.40370689,8.524e-05,2]
[420272633,1775898263794,-510.40370689,8.524e-05,2]
[420272634,1775898263848,-406.37663799,8.524e-05,2]
[420272635,1775898264074,-104.0270689,8.524e-05,2]
[420272636,1775898264155,-510.40370689,8.524e-05,2]
[420272637,1775898264218,-510.40370689,8.524e-05,2]
[420272638,1775898264263,-510.40370689,8.524e-05,2]
[420272639,1775898264298,-510.40370689,8.524e-05,2]
[420272640,1775898264338,-198.32250019,8.524e-05,2]
[420272641,1775898264386,-312.0812067,8.524e-05,2]
[420272642,1775898264420,-510.40370689,8.524e-05,2]
[420272643,1775898264457,-510.40370689,8.524e-05,2]
[420272644,1775898264493,-510.40370689,8.524e-05,2]
[420272645,1775898264527,-510.40370689,8.524e-05,2]
[420272646,1775898264583,-510.40370689,8.524e-05,2]
[420272647,1775898264617,-510.40370689,8.524e-05,2]
[420272648,1775898264650,-510.40370689,8.524e-05,2]
[420272649,1775898264683,-510.40370689,8.524e-05,2]
[420272650,1775898264719,-406.37663799,8.524e-05,2]
[420272651,1775898265075,-104.0270689,8.524e-05,2]
[420272652,1775898265147,-95.9729311,8.524e-05,2]
[420272653,1775898265851,-414.43077579,8.524e-05,2]
[420272654,1775898265886,-510.40370689,8.524e-05,2]
[420272655,1775898265921,-510.40370689,8.524e-05,2]
[420272656,1775898265954,-510.40370689,8.524e-05,2]
[420272657,1775898265987,-510.40370689,8.524e-05,2]
[420272659,1775898271932,-510.40370689,8.524e-05,2]
[420272660,1775898271967,-510.40370689,8.524e-05,2]
[420272661,1775898272001,-510.40370689,8.524e-05,2]
[420272662,1775898272035,-510.40370689,8.524e-05,2]
[420272663,1775898272068,-406.37663799,8.524e-05,2]
[420272666,1775898273650,-104.0270689,8.524e-05,2]
[420272667,1775898273686,-510.40370689,8.524e-05,2]
[420272668,1775898273728,-510.40370689,8.524e-05,2]
[420272669,1775898273768,-510.40370689,8.524e-05,2]
[420272670,1775898273809,-510.40370689,8.524e-05,2]
[420272671,1775898273844,-198.32250019,8.524e-05,2]
[420272672,1775898274105,-312.0812067,8.524e-05,2]
[420272673,1775898274149,-500.0,8.524e-05,2]
[420272674,1775898274189,-500.0,8.524e-05,2]
[420272675,1775898274229,-500.0,8.524e-05,2]
[420272676,1775898274270,-199.01926406,8.524e-05,2]
[420272677,1775898274311,-477.80905848,8.524e-05,2]
[420272678,1775898276399,-22.19094152,8.524e-05,2]
[420272679,1775898276428,-500.0,8.524e-05,2]
[420272680,1775898276456,-631.06928671,8.524e-05,2]
[420272681,1775898276490,-500.0,8.524e-05,2]
[420272682,1775898276523,-500.0,8.524e-05,2]
[420272683,1775898276557,-193.48954354,8.524e-05,2]
[420272684,1775898276612,-306.51045646,8.524e-05,2]
[420272685,1775898276644,-500.0,8.524e-05,2]
[420272686,1775898276677,-500.0,8.524e-05,2]
[420272687,1775898276710,-500.0,8.524e-05,2]
[420272688,1775898276744,-500.0,8.524e-05,2]
[420272689,1775898277937,-500.0,8.524e-05,2]
[420272690,1775898277980,-500.0,8.524e-05,2]
[420272691,1775898278019,-500.0,8.524e-05,2]
[420272692,1775898278055,-500.0,8.524e-05,2]
[420272693,1775898278090,-500.0,8.524e-05,2]
[420272694,1775898278176,-500.0,8.524e-05,2]
[420272695,1775898278211,-476.95030262,8.524e-05,2]
[420272696,1775898278243,-500.0,8.524e-05,2]
[420272697,1775898278273,-645.11563404,8.524e-05,2]
[420272698,1775898278310,-255.87812668,8.524e-05,2]
[420272700,1775898300090,3278.33,8.304e-05,2]
[420272701,1775898301052,254.0,8.523e-05,2]
[420272702,1775898301138,1200.0,8.523e-05,2]
[420272704,1775898308501,157.0,8.524e-05,3]
[420272705,1775898308672,200.0,8.5e-05,2]
[420272706,1775898308783,500.0,7.945e-05,2]
[420272707,1775898310175,1205.0,8.524e-05,3]
[420272708,1775898316897,166.0,8.524e-05,3]